{"text_format":"3","workbook":"xlsx","n_sheets":1,"sheets":["2_Ресурс. обесп."],"not_rendered":{"defined_names":3},"read":"whole","date_system":"1900"}

{"sheet":"2_Ресурс. обесп.","index":0,"n_rows":27,"n_cols":11,"rows_kept":27,"merged":[[1,7,1,10],[2,1,2,10],[3,1,3,10],[4,1,4,10],[8,0,11,0],[8,1,11,1],[8,2,11,2],[8,7,11,7],[8,8,11,8],[8,9,11,9],[8,10,11,10],[12,0,15,0],[12,1,15,1],[12,2,15,2],[12,7,15,7],[12,8,15,8],[12,9,15,9],[12,10,15,10],[16,0,19,0],[16,1,19,1],[16,2,19,2],[16,7,19,7],[16,8,19,8],[16,9,19,9],[16,10,19,10],[26,1,26,7],[26,8,26,9],[28,1,28,3],[29,1,29,3],[41,1,41,3],[41,5,41,7],[45,1,46,3],[47,5,47,7]]}
[]
[{"$nulls":7}," Приложение 2\nк Отчету о реализации Программы  \n \n"]
[null,"Отчет об исполнении мероприятий муниципальной программы"]
[null," города Усолье-Сибирское \"Обеспечение населения доступным жильем\"на 2019-2027 годы"]
[null," за 2025 год"]
[{"$nulls":10},"Таблица 2"]
["№ п/п","Наименование программы, подпрограммы, основного мероприятия, мероприятия, проекта","Ответственный исполнитель Программы, соисполнители Программы, участники Программы, участники подпрограммы","Источник финансирования","Объем финансирования, предусмотренный на 2025 год, руб.","Профинансировано за 2025 год, руб.","Процент исполнения (гр.6/гр.5*100),%","Наименование показателя объема мероприятия, единица измерения","Плановое значение показателя мероприятия на 2025 год","Фактическое значение показателя мероприятия за 2025 год","Обоснование причин отклонения (при наличии)"]
[1,2,3,4,5,6,7,8,9,10,11]
[null,"Муниципальная программа города Усолье-Cибирское «Обеспечение населения доступным жильем» на 2019-2027 годы","Комитет по городскому хозяйству администрации города","Всего:",{"$f":"E10+E11+E12","v":{"v":210797260.12,"d":"210,797,260.12"}},{"$f":"F10+F11+F12","v":{"v":195360989.56,"d":"195,360,989.56"}},{"$f":"F9/E9*100","v":{"v":92.6771958273022,"d":"92.68"}},"*","*","*","*"]
[{"$nulls":3},"Местный бюджет",{"$f":"E14","v":{"v":69138911.4,"d":"69,138,911.40"}},{"v":69138911.4,"d":"69,138,911.40"},{"$f":"F10/E10*100","v":{"v":100,"d":"100.00"}}]
[{"$nulls":3},"Областной бюджет ",{"v":82464500,"d":"82,464,500.00"},{"v":67028229.44,"d":"67,028,229.44"},{"v":81.28131431100655,"d":"81.28"}]
[{"$nulls":3},"Средства Фонда",{"v":59193848.72,"d":"59,193,848.72"},{"v":59193848.72,"d":"59,193,848.72"},{"$f":"F12/E12*100","v":{"v":100,"d":"100.00"}}]
[null,"Подпрограмма «Переселение граждан из аварийного жилищного фонда в городе Усолье-Сибирское» на 2019-2027 годы","Отдел по управлению жилищным фондом комитета по городскому хозяйству администрации города","Всего:",{"$f":"E14+E15+E16","v":{"v":210797260.12,"d":"210,797,260.12"}},{"$f":"F14+F15+F16","v":{"v":195360989.56,"d":"195,360,989.56"}},{"$f":"F13/E13*100","v":{"v":92.6771958273022,"d":"92.68"}},"*","*","*","*"]
[{"$nulls":3},"Местный бюджет",{"$f":"E18+E21+E22+E23+E24","v":{"v":69138911.4,"d":"69,138,911.40"}},{"$f":"F18+F21+F22+F23+F24","v":{"v":69138911.4,"d":"69,138,911.40"}},{"$f":"F14/E14*100","v":{"v":100,"d":"100.00"}}]
[{"$nulls":3},"Областной бюджет",{"$f":"E19","v":{"v":82464500,"d":"82,464,500.00"}},{"$f":"F19","v":{"v":67028229.44,"d":"67,028,229.44"}},{"v":81.28131431100655,"d":"81.28"}]
[{"$nulls":3},"Средства Фонда",{"$f":"E20","v":{"v":59193848.72,"d":"59,193,848.72"}},{"$f":"F20","v":{"v":59193848.72,"d":"59,193,848.72"}},{"$f":"F16/E16*100","v":{"v":100,"d":"100.00"}}]
["1","Основное мероприятие 1.1. «Переселение граждан, проживающих в домах, признанных непригодными для проживания»","Отдел по управлению жилищным фондом комитета по городскому хозяйству администрации города","Всего:",{"$f":"E18+E19+E20","v":{"v":207866760.12,"d":"207,866,760.12"}},{"$f":"F18+F19+F20","v":{"v":192430489.56,"d":"192,430,489.56"}},{"$f":"F17/E17*100","v":{"v":92.5739591307967,"d":"92.57"}},"Количество граждан, переселенных из многоквартирных домов, признанных в установленном порядке аварийными и подлежащими сносу (человек)  ",265,101,"Отклонение в финансировании в размере 15 436 270,56 руб.\n15 436 270,56 - не использованные денежные средства областного бюджета, предоставленные в соответствии с Соглашением о предоставлении субсидии местному бюджету из областного бюджета от 28.02.2024 г. № 630.\nБюждетные ассигнования были предусмотрены на оплату ООО \"СМУ-22\" по муниципальным контрактам на приобретение жилых помещений (квартир), которые будут созданы в будущем в городе Усолье-Сибирское Иркутской области) при соблюдении условия о государственной регистрации перехода права на жилые помещения к Заказчику в Управлении Федеральной службы государственной регистрации, кадастра и картографии по Иркутской области. Поставщик жилые помещения не предоставил."]
[{"$nulls":3},"Местный бюджет",{"v":66208411.4,"d":"66,208,411.40"},{"v":66208411.4,"d":"66,208,411.40"},{"$f":"F18/E18*100","v":{"v":100,"d":"100.00"}}]
[{"$nulls":3},"Областной бюджет",{"v":82464500,"d":"82,464,500.00"},{"v":67028229.44,"d":"67,028,229.44"},{"v":81.28131431100655,"d":"81.28"}]
[{"$nulls":3},"Средства Фонда",{"v":59193848.72,"d":"59,193,848.72"},{"v":59193848.72,"d":"59,193,848.72"},{"$f":"F20/E20*100","v":{"v":100,"d":"100.00"}}]
["2","Основное мероприятие 1.2. \"Снос аварийного жилищного фонда, признанного после 01 января 2012 года в установленном порядке аварийным и подлежащим сносу в связи с физическим износом в процессе эксплуатации\"","Отдел по управлению жилищным фондом комитета по городскому хозяйству администрации города","Местный бюджет",{"v":2587000,"d":"2,587,000.00"},{"v":2587000,"d":"2,587,000.00"},{"$f":"F21/E21*100","v":{"v":100,"d":"100.00"}},"Площадь снесенного аварийного жилищного фонда, признанного после 01 января 2012 года в установленном порядке аварийным и подлежащим сносу в связи с физическим износом в процессе эксплуатации",{"v":2241.08,"d":"2,241.08"},{"v":2181.44,"d":"2,181.44"}]
["3","Основное мероприятие 1.3. «Обследование технического состояния и выдача заключений на жилые дома»","Отдел по управлению жилищным фондом комитета по городскому хозяйству администрации города","Местный бюджет",{"v":88500,"d":"88,500.00"},{"v":88500,"d":"88,500.00"},{"$f":"F22/E22*100","v":{"v":100,"d":"100.00"}},"Количество выданных заключений специализированной организации, проводившей обследования жилых домов (шт.)",2,2,"*"]
["3","Основное мероприятие 1.5. \"Проектирование строительства многоквартирных домов\"","МКУ \"ГУКС\" ","Местный бюджет",{"v":240000,"d":"240,000.00"},{"v":240000,"d":"240,000.00"},{"v":100,"d":"100.00"},"Количество разработанной проектной документации (ед.)",1,1,"*"]
["4","Основное мероприятие 1.6. Оценка рыночной стоимости жилых помещений, признанных аварийными до 01.01.2017 года","Отдел по управлению жилищным фондом комитета по городскому хозяйству администрации города","Местный бюджет",{"v":15000,"d":"15,000.00"},{"v":15000,"d":"15,000.00"},{"$f":"F24/E24*100","v":{"v":100,"d":"100.00"}},"Количество жилых помещений, признанных аварийными до 01.01.2017 года, по которым проведена оценка рыночной стоимости (ед.)",3,3,"*"]
[]
[]
[null,"Мэр города Усолье-Сибирское                                                      М.В. Торопкин"]